bitfinex-derivatives/quotes_SOLF0:USTF0_20260217
["timestamp","ask_amount","ask_price","bid_price","bid_amount"]
[1771340854349,10.7887,83.467,83.411,3.8766474]
[1771340854954,1.15183777,83.47,83.411,3.8766474]
[1771340855259,1.15183777,83.469,83.391,3.8766474]
[1771340855457,1.15183777,83.469,83.402,10.797]
[1771340855648,1.15183777,83.469,83.391,3.8766474]
[1771340855856,6.17858764,83.47,83.391,3.8766474]
[1771340856155,6.17858764,83.47,83.409,10.7961]
[1771340856855,14.18035644,83.556,83.355,168.0484]
[1771340856856,6.17858764,83.5,83.416,3.8766474]
[1771340857061,1.09812188,83.499,83.416,3.8766474]
[1771340858865,1.09812188,83.499,83.425,14.6706474]
[1771340859063,1.10656022,83.479,83.398,3.8766474]
[1771340859363,6.17858764,83.44,83.37,6.17858764]
[1771340859660,1.10656022,83.439,83.37,6.17858764]
[1771340859856,6.17858764,83.45,83.395,10.7979]
[1771340860362,1.0964937,83.449,83.384,10.7993]
[1771340860860,6.17858764,83.45,83.385,3.8766474]
[1771340861256,6.17858764,83.45,83.394,3.8766474]
[1771340862360,7.26182054,83.45,83.374,3.8766474]
[1771340862555,1.0832329,83.449,83.374,3.8766474]
[1771340863162,1.0832329,83.449,83.376,10.8003]
[1771340863355,8.57359461,83.497,83.284,3.8766474]
[1771340863356,1.0832329,83.389,83.284,3.8766474]
[1771340863557,1.0832329,83.389,83.205,168.3497]
[1771340863558,6.17858764,83.31,83.24,3.8766474]
[1771340864055,1.08123634,83.371,83.261,3.8766474]
[1771340864365,1.0788088,83.319,83.24,6.17858764]
[1771340864553,6.17858764,83.3,83.238,3.95387187]
[1771340865953,1.07887986,83.299,83.229,10.8193]
[1771340866160,6.17858764,83.28,83.215,3.95387187]
[1771340867064,1.28706203,83.279,83.204,10.8227]
[1771340867264,6.17858764,83.3,83.22,6.17858764]
[1771340867560,6.17858764,83.3,83.223,3.95387187]
[1771340868162,6.17858764,83.3,83.22,6.17858764]
[1771340868163,6.17858764,83.3,83.225,3.95387187]
[1771340868368,1.24928672,83.299,83.225,3.95387187]
[1771340868664,10.8109,83.295,83.225,3.95387187]
[1771340868863,6.17858764,83.3,83.201,3.95387187]
[1771340868864,1.24928672,83.294,83.201,3.95387187]
[1771340869071,6.17858764,83.3,83.201,3.95387187]
[1771340869072,1.24928672,83.279,83.201,3.95387187]
[1771340869361,6.17858764,83.3,83.211,3.95387187]
[1771340869362,1.24928672,83.299,83.211,3.95387187]
[1771340869564,1.24928672,83.279,83.211,3.95387187]
[1771340869964,6.17858764,83.28,83.2,6.17858764]
[1771340869965,6.17858764,83.32,83.221,3.95387187]
[1771340870161,6.17858764,83.32,83.22,6.17858764]
[1771340870162,6.17858764,83.32,83.241,3.95387187]
[1771340870366,1.2299043,83.317,83.241,3.95387187]
[1771340870571,6.17858764,83.3,83.241,3.95387187]
[1771340871266,1.2299043,83.317,83.241,3.95387187]
[1771340871762,167.9737,83.393,83.261,14.76917187]
[1771340871763,10.8058,83.334,83.261,14.76917187]
[1771340871962,10.8058,83.334,83.262,3.95387187]
[1771340872563,10.8065,83.329,83.262,3.95387187]
[1771340872770,1.25160696,83.319,83.249,10.8168]
[1771340873067,1.25157405,83.315,83.241,3.84840113]
[1771340873467,6.17858764,83.3,83.241,3.84840113]
[1771340873662,6.17858764,83.3,83.228,10.8194]
[1771340873663,7.43016169,83.3,83.228,10.8194]
[1771340873867,7.43016169,83.3,83.229,3.84840113]
[1771340874066,7.43016169,83.3,83.235,14.66710113]
[1771340874371,7.43016169,83.3,83.236,3.84840113]
[1771340874973,7.43016169,83.3,83.24,10.8179]
[1771340875180,10.8082,83.316,83.241,3.84840113]
[1771340875469,6.17858764,83.34,83.26,6.17858764]
[1771340875667,7.37336435,83.34,83.261,3.84840113]
[1771340875862,10.806,83.333,83.261,14.66360113]
[1771340876274,1.19893774,83.332,83.261,14.66360113]
[1771340876870,1.19893774,83.319,83.252,3.84840113]
[1771340877176,6.17858764,83.35,83.213,10.8215]
[1771340877177,1.19893774,83.292,83.213,10.8215]
[1771340877368,6.17858764,83.28,83.208,3.84840113]
[1771340877568,6.17858764,83.3,83.221,3.84840113]
[1771340877970,1.19893774,83.314,83.221,3.84840113]
[1771340878473,1.19893774,83.314,83.2,6.17858764]
[1771340878474,1.19893774,83.314,83.241,3.84840113]
[1771340878675,6.17858764,83.33,83.241,3.84840113]
[1771340879076,6.17858764,83.33,83.272,10.8138]
[1771340879369,6.17858764,83.35,83.261,3.84840113]
[1771340879671,1.18378061,83.359,83.3,6.17858764]
[1771340880174,10.804,83.348,83.281,3.84840113]
[1771340880375,1.18378061,83.359,83.281,3.84840113]
[1771340880877,1.15327972,83.339,83.26,6.17858764]
[1771340881372,6.17858764,83.35,83.259,3.84840113]
[1771340881373,6.17858764,83.32,83.261,10.8152]
[1771340881565,1.15327972,83.323,83.26,6.17858764]
[1771340881963,10.8075,83.321,83.259,3.84840113]
[1771340882580,10.8081,83.317,83.261,10.8152]
[1771340882779,10.8081,83.317,83.24,6.17858764]
[1771340883071,6.17858764,83.31,83.241,3.84840113]
[1771340883265,6.17858764,83.32,83.241,3.84840113]
[1771340883774,1.14160082,83.335,83.209,168.3424]
[1771340883775,10.8062,83.332,83.261,3.84840113]
[1771340883976,7.32018846,83.32,83.241,3.84840113]
[1771340884170,10.8079,83.319,83.256,10.8159]
[1771340884475,1.14785175,83.318,83.256,10.8159]
[1771340884690,1.14785175,83.318,83.241,3.84840113]
[1771340884974,10.8081,83.317,83.264,10.8148]
[1771340885773,1.14785175,83.318,83.264,10.8148]
[1771340886476,1.14785175,83.318,83.255,10.816]
[1771340886975,1.14785175,83.318,83.241,3.84840113]
[1771340887172,10.808,83.317,83.263,10.8149]
[1771340887570,10.808,83.317,83.253,10.8163]
[1771340887975,10.8091,83.309,83.253,10.8163]
[1771340888379,10.8091,83.309,83.244,10.8174]
[1771340888581,10.8091,83.309,83.241,3.84840113]
[1771340888883,6.17858764,83.31,83.241,3.84840113]
[1771340889086,6.17858764,83.31,83.203,21.6456]
[1771340889087,1.14785175,83.318,83.251,3.84840113]
[1771340889380,6.17858764,83.35,83.271,3.84840113]
[1771340889381,1.15557756,83.338,83.271,3.84840113]
[1771340889590,1.15557756,83.38,83.31,6.17858764]
[1771340889776,1.15557756,83.38,83.256,168.2471]
[1771340889777,1.15557756,83.38,83.311,3.84840113]
[1771340889978,10.7994,83.384,83.324,10.807]
[1771340890182,167.8452,83.457,83.321,3.84840113]
[1771340890183,6.17858764,83.41,83.321,3.84840113]
[1771340890484,10.797,83.402,83.35,10.8037]
[1771340890678,8.541437,83.456,83.3,6.17858764]
[1771340890679,6.17858764,83.43,83.341,3.84840113]
[1771340890983,1.16101481,83.429,83.36,6.17858764]
[1771340891181,1.16101481,83.429,83.361,3.84840113]
[1771340891880,1.16101481,83.45,83.381,3.84840113]
[1771340892078,263.46886201,83.46,83.343,21.6091]
[1771340892079,10.791,83.449,83.389,14.64700113]
[1771340892683,257.30914002,83.46,83.401,3.84840113]
[1771340892890,0.83329244,83.495,83.42,10.00812312]
[1771340893080,10.7865,83.484,83.42,3.84840113]
[1771340893279,6.15972199,83.5,83.42,6.15972199]
[1771340893474,0.83329244,83.499,83.421,3.84840113]
[1771340893678,0.83329244,83.499,83.424,10.7941]
[1771340894185,6.15972199,83.51,83.447,10.7912]
[1771340894391,0.76539262,83.509,83.421,3.84840113]
[1771340894778,0.76539262,83.509,83.431,3.87261485]
[1771340895283,0.76573515,83.489,83.41,6.15972199]
[1771340895475,0.76573515,83.489,83.408,3.87261485]
[1771340895681,6.15972199,83.47,83.408,3.87261485]
[1771340895986,0.76573515,83.469,83.387,3.87261485]
[1771340896180,0.76573515,83.469,83.397,10.7976]
[1771340896381,0.76573515,83.469,83.38,6.15972199]
[1771340896581,6.15972199,83.5,83.364,3.87261485]
[1771340896582,0.76396696,83.449,83.364,3.87261485]
[1771340896886,0.76396696,83.449,83.383,10.7995]
[1771340897091,6.15972199,83.45,83.381,3.87261485]
[1771340897983,6.15972199,83.45,83.382,10.7995]
[1771340898381,0.73270069,83.429,83.34,10.03233684]
[1771340898685,0.73270069,83.429,83.311,168.137]
[1771340898686,6.15972199,83.41,83.342,3.87261485]
[1771340898887,6.15972199,83.43,83.351,3.87261485]
[1771340899192,6.15972199,83.45,83.383,3.87261485]
[1771340899489,6.15972199,83.47,83.391,3.87261485]
[1771340899990,0.73270069,83.469,83.391,3.87261485]
[1771340900377,6.15972199,83.45,83.391,3.87261485]
[1771340901092,6.15972199,83.45,83.381,3.87261485]
[1771340901584,0.73270069,83.469,83.402,10.797]
[1771340901890,0.73270069,83.469,83.381,3.87261485]
[1771340902489,0.70670783,83.467,83.391,10.7984]
[1771340902693,0.70670783,83.449,83.381,3.87261485]
[1771340902993,0.70670783,83.449,83.392,10.7982]
[1771340903289,0.70670783,83.449,83.381,3.87261485]
[1771340903693,0.70670783,83.449,83.382,10.7996]
[1771340903996,0.70670783,83.449,83.381,3.87261485]
[1771340904491,6.15972199,83.43,83.371,10.801]
[1771340904892,6.15972199,83.43,83.359,3.87261485]
[1771340904893,0.64924751,83.429,83.359,3.87261485]
[1771340905091,0.64924751,83.429,83.34,6.15972199]
[1771340905092,6.15972199,83.43,83.361,3.87261485]
[1771340905291,0.64924751,83.419,83.338,3.87261485]
[1771340905688,6.15972199,83.4,83.338,3.87261485]
[1771340905991,0.64803417,83.399,83.317,3.87261485]
[1771340906189,6.15972199,83.4,83.317,3.87261485]
[1771340906190,0.64803417,83.379,83.317,3.87261485]
[1771340906390,6.80775616,83.4,83.317,3.87261485]
[1771340906592,10.7976,83.398,83.317,3.87261485]
[1771340906797,0.64803417,83.397,83.317,3.87261485]
[1771340907294,10.798,83.394,83.328,10.8065]
[1771340907696,10.799,83.387,83.317,14.68061485]
[1771340907890,0.64803417,83.393,83.318,3.87261485]
[1771340908295,0.64803417,83.393,83.296,3.87261485]
[1771340908296,6.15972199,83.37,83.296,3.87261485]
[1771340908587,6.15972199,83.39,83.311,3.87261485]
[1771340909297,10.8005,83.376,83.311,14.68131485]
[1771340910288,0.67563527,83.386,83.311,14.68131485]
[1771340910794,0.67563527,83.386,83.319,10.8077]
[1771340910994,0.67563527,83.386,83.312,3.87261485]
[1771340911199,6.15972199,83.37,83.312,3.87261485]
[1771340911793,11.47713527,83.368,83.3,6.15972199]
[1771340911993,0.67563527,83.368,83.291,3.87261485]
[1771340912199,10.8027,83.359,83.291,3.87261485]
[1771340912592,6.84285763,83.35,83.273,3.87261485]
[1771340912795,10.8055,83.337,83.273,3.87261485]
[1771340913796,11.49013564,83.325,83.26,10.8154]
[1771340914000,11.49013564,83.325,83.261,3.87261485]
[1771340914501,0.68313564,83.325,83.241,3.87261485]
[1771340914699,6.15972199,83.33,83.261,3.87261485]
[1771340914903,10.8059,83.334,83.278,3.87261485]
[1771340915697,0.73484518,83.369,83.283,3.87261485]
[1771340916500,0.73484518,83.369,83.309,3.87261485]
[1771340917000,35.99,83.419,83.309,3.87261485]
[1771340917001,6.88348868,83.39,83.309,3.87261485]
[1771340917295,6.88348868,83.39,83.256,168.2478]
[1771340917296,6.88348868,83.39,83.321,3.87261485]
[1771340917996,6.15972199,83.41,83.341,3.87261485]
[1771340918193,6.88323451,83.41,83.341,3.87261485]
[1771340918390,10.7973,83.4,83.341,14.67741485]
[1771340918593,0.72351252,83.399,83.32,6.15972199]
[1771340919004,0.72351252,83.399,83.321,3.87261485]
[1771340920592,10.7977,83.397,83.335,10.8057]
[1771340920998,6.15972199,83.41,83.321,3.87261485]
[1771340921303,27.74142199,83.45,83.3,6.15972199]
[1771340921304,0.72179836,83.44,83.356,3.87261485]
[1771340921504,6.15972199,83.43,83.361,3.87261485]
[1771340921699,6.15972199,83.5,83.322,168.1139]
[1771340921700,0.72179836,83.463,83.388,3.87261485]
[1771340921903,6.15972199,83.47,83.401,3.87261485]
[1771340922112,0.72179836,83.485,83.401,3.87261485]
[1771340922296,10.7866,83.483,83.401,3.87261485]
[1771340922507,0.71784296,83.482,83.42,6.15972199]
[1771340922805,0.71784296,83.509,83.435,10.7927]
[1771340923207,0.71784296,83.509,83.441,3.87261485]
[1771340923399,6.15972199,83.53,83.46,6.15972199]
[1771340924509,0.70354375,83.549,83.461,3.67270937]
[1771340924902,0.70354375,83.529,83.44,6.15972199]
[1771340925107,6.15972199,83.51,83.44,6.15972199]
[1771340925506,6.15972199,83.51,83.441,3.67270937]
[1771340926403,0.68939067,83.507,83.421,3.67270937]
[1771340926805,167.6741,83.542,83.421,3.67270937]
[1771340926806,10.786,83.488,83.421,3.67270937]
[1771340927206,0.68939067,83.489,83.421,3.67270937]
[1771340928500,1.01863897,83.488,83.402,10.7969]
[1771340928702,6.15972199,83.47,83.403,3.67270937]
[1771340928904,1.01863897,83.47,83.403,3.67270937]
[1771340929103,6.15972199,83.46,83.381,3.67270937]
[1771340929411,1.01863897,83.481,83.381,3.67270937]
[1771340929613,6.15972199,83.47,83.381,3.67270937]
[1771340929815,6.15972199,83.45,83.386,3.67270937]
[1771340930210,1.01863897,83.467,83.386,3.67270937]
[1771340930407,1.01863897,83.467,83.387,3.67270937]
[1771340930812,10.7903,83.454,83.387,3.67270937]
[1771340931108,167.7708,83.494,83.345,183.05631991]
[1771340931109,1.01693828,83.449,83.365,3.67270937]
[1771340931309,10.7927,83.436,83.367,3.67270937]
[1771340931613,1.01693828,83.47,83.381,3.67270937]
[1771340931811,7.17666027,83.47,83.381,3.67270937]
[1771340932207,6.15972199,83.47,83.401,3.97287365]
[1771340932411,6.15972199,83.51,83.42,6.15972199]
[1771340932715,10.7834,83.507,83.433,3.97287365]
[1771340932908,10.7834,83.507,83.441,3.97287365]
[1771340933314,10.7834,83.507,83.381,167.9962]
[1771340933315,10.7791,83.541,83.48,6.15972199]
[1771340933512,10.56115283,83.599,83.48,6.15972199]
[1771340933513,6.15972199,83.57,83.481,3.97287365]
[1771340933711,10.7759,83.566,83.504,10.7838]
[1771340934014,0.96695761,83.569,83.501,3.97287365]
[1771340934214,0.96695761,83.569,83.49,6.15972199]
[1771340934419,0.96695761,83.569,83.491,3.97287365]
[1771340934619,6.15972199,83.57,83.491,3.97287365]
[1771340935121,6.15972199,83.57,83.495,3.97287365]
[1771340935719,0.96695761,83.569,83.495,3.97287365]
[1771340935921,10.777,83.558,83.495,3.97287365]
[1771340936219,6.15972199,83.6,83.474,3.97287365]
[1771340936220,1.13230883,83.549,83.474,3.97287365]
[1771340936723,6.15972199,83.54,83.474,3.97287365]
[1771340936920,1.13230883,83.581,83.521,10.7815]
[1771340937113,1.13230883,83.581,83.51,6.15972199]
[1771340937309,1.13230883,83.631,83.541,3.97287365]
[1771340937515,6.15972199,83.63,83.551,3.97287365]
[1771340937808,6.15972199,83.63,83.515,167.7266]
[1771340937809,6.15972199,83.65,83.571,3.97287365]
[1771340938012,1.24018817,83.649,83.571,3.97287365]
[1771340938215,1.24018817,83.629,83.545,3.97287365]
[1771340938618,1.24018817,83.629,83.508,167.7391]
[1771340938619,6.15972199,83.65,83.561,3.97287365]
[1771340938820,1.24018817,83.652,83.55,6.15972199]
[1771340938821,1.24018817,83.652,83.59,10.7726]
[1771340939010,1.24018817,83.652,83.581,3.97287365]
[1771340939319,6.15972199,83.64,83.581,3.97287365]
[1771340939519,6.15972199,83.64,83.562,10.7763]
[1771340939717,6.15972199,83.7,83.559,3.97287365]
[1771340939718,6.15972199,83.63,83.559,3.97287365]
[1771340939909,6.15972199,83.63,83.54,6.15972199]
[1771340939910,1.24018817,83.639,83.561,3.97287365]
[1771340940418,1.22049991,83.664,83.561,3.97287365]
[1771340940619,183.60103626,83.726,83.605,10.7707]
[1771340940620,1.22049991,83.688,83.605,10.7707]
[1771340940921,1.22049991,83.688,83.595,3.97287365]
[1771340941218,1.22049991,83.688,83.528,670.7989]
[1771340941219,16.24631082,83.65,83.551,3.97287365]
[1771340941418,15.02581091,83.67,83.571,3.97287365]
[1771340941616,1.22049991,83.669,83.594,3.97287365]
[1771340942120,1.22049991,83.669,83.521,167.7143]
[1771340942121,1.22049991,83.669,83.573,14.74767365]
[1771340942418,183.60103626,83.726,83.55,3.97287365]
[1771340942419,1.34069899,83.649,83.55,3.97287365]
[1771340942623,1.34069899,83.649,83.576,3.97287365]
[1771340942822,15.02581091,83.66,83.576,3.97287365]
[1771340943020,10.56115283,83.751,83.531,167.6936]
[1771340943021,1.34069899,83.676,83.591,3.97287365]
[1771340943719,167.2696,83.744,83.591,3.97287365]
[1771340943720,1.34069899,83.659,83.591,3.97287365]
[1771340943917,1.34069899,83.659,83.557,3.97287365]
[1771340944123,1.3433454,83.679,83.571,3.97287365]
[1771340944315,167.2852,83.736,83.571,3.97287365]
[1771340944316,1.3433454,83.659,83.571,3.97287365]
[1771340944521,15.02581091,83.68,83.571,3.97287365]
[1771340944720,1.3433454,83.679,83.571,3.97287365]
[1771340944921,15.02581091,83.68,83.571,3.97287365]
[1771340944922,1.3433454,83.659,83.572,3.97287365]
[1771340945328,1.3433454,83.639,83.551,3.97287365]
[1771340945919,15.02581091,83.62,83.551,3.97287365]
[1771340946318,1.38358643,83.688,83.551,3.97287365]
[1771340946521,1.38358643,83.733,83.571,3.97287365]
[1771340946718,1.38358643,83.733,83.636,3.97287365]
[1771340947117,1.38358643,83.733,83.595,167.5655]
[1771340947118,1.38358643,83.733,83.65,15.02581091]
[1771340947323,7.83641934,83.719,83.62,15.02581091]
[1771340947518,15.02581091,83.76,83.64,15.02581091]
[1771340947519,7.83641934,83.739,83.64,15.02581091]
[1771340948229,7.90191402,83.762,83.66,15.02581091]
[1771340948438,7.90191402,83.787,83.7,15.02581091]
[1771340948635,7.90191402,83.787,83.701,10.7584]
[1771340948938,7.90191402,83.787,83.68,15.02581091]
[1771340949124,7.90191402,83.775,83.68,15.02581091]
[1771340949322,7.90191402,83.775,83.599,167.5566]
[1771340949323,7.90191402,83.769,83.66,15.02581091]
[1771340949727,7.90191402,83.749,83.66,10.7636]
[1771340949927,7.90191402,83.749,83.64,15.02581091]
[1771340950122,7.90191402,83.749,83.66,15.02581091]
[1771340950327,167.0082,83.875,83.598,502.6788]
[1771340950328,7.84143355,83.819,83.72,15.02581091]
[1771340950531,7.84143355,83.819,83.713,167.3293]
[1771340950532,7.84143355,83.819,83.74,15.02581091]
[1771340950721,7.84143355,83.849,83.749,10.7522]
[1771340951223,7.84143355,83.849,83.74,15.02581091]
[1771340951224,7.84143355,83.835,83.74,15.02581091]
[1771340951428,7.84143355,83.809,83.7,15.02581091]
[1771340951836,7.84143355,83.806,83.7,15.02581091]
[1771340952029,7.84143355,83.806,83.72,15.02581091]
[1771340952533,23.20592772,83.83,83.72,15.02581091]
[1771340952724,8.18011681,83.829,83.72,15.02581091]
[1771340952931,8.18011681,83.829,83.74,15.02581091]
[1771340953130,8.18011681,83.829,83.737,10.7537]
[1771340953330,8.18011681,83.829,83.72,15.02581091]
[1771340953736,8.18984968,83.824,83.724,10.7554]
[1771340953930,8.18984968,83.819,83.72,22.4461982]
[1771340954238,166.9993,83.879,83.68,22.4461982]
[1771340954239,8.21841163,83.779,83.68,22.4461982]
[1771340954426,167.0417,83.858,83.654,167.4472]
[1771340954427,22.4461982,83.8,83.7,22.4461982]
[1771340954626,30.66460983,83.8,83.724,10.7555]
[1771340954831,8.21841163,83.8,83.724,10.7555]
[1771340955031,8.21841163,83.8,83.7,22.4461982]
[1771340955334,8.23600011,83.798,83.711,10.757]
[1771340955735,22.4461982,83.8,83.7,22.4461982]
[1771340955736,8.23600011,83.782,83.7,22.4461982]
[1771340956140,8.28464616,83.807,83.7,22.4461982]
[1771340956339,22.4461982,83.82,83.7,22.4461982]
[1771340956340,8.28464616,83.804,83.7,22.4461982]
[1771340956946,8.28464616,83.799,83.7,22.4461982]
[1771340957442,8.28464616,83.799,83.701,10.7583]
[1771340957643,8.28464616,83.799,83.7,22.4461982]
[1771340958040,8.29436455,83.773,83.68,22.4461982]
[1771340958549,8.31030104,83.756,83.66,22.4461982]
[1771340959247,8.31992002,83.779,83.684,10.7606]
[1771340960244,8.33153158,83.776,83.68,22.4461982]
[1771340960845,8.33153158,83.798,83.7,22.4461982]
[1771340961057,8.33153158,83.798,83.723,10.7556]
[1771340961248,8.33153158,83.798,83.72,22.4461982]
[1771340961549,8.34096823,83.797,83.69,22.4461982]
[1771340961951,8.34096823,83.797,83.657,167.441]
[1771340961952,8.34096823,83.797,83.71,22.4461982]
[1771340962252,8.34096823,83.797,83.713,10.7568]
[1771340962436,8.34096823,83.797,83.71,22.4461982]
[1771340962640,8.37280933,83.795,83.71,22.4461982]
[1771340963054,8.38241131,83.791,83.71,22.4461982]
[1771340963952,8.38241131,83.791,83.699,10.7586]
[1771340963953,8.38241131,83.775,83.69,22.4461982]
[1771340964343,8.38241131,83.775,83.67,22.4461982]
[1771340964344,10.7525,83.748,83.67,22.4461982]
[1771340964550,8.38241131,83.775,83.67,22.4461982]
[1771340965248,167.1503,83.804,83.67,22.4461982]
[1771340965249,8.41963105,83.769,83.67,22.4461982]
[1771340965645,8.41963105,83.769,83.66,22.4461982]
[1771340966354,8.43700767,83.735,83.66,22.4461982]
[1771340967047,8.43700767,83.735,83.64,22.4461982]
[1771340967246,10.7556,83.724,83.65,10.765]
[1771340967648,8.43700767,83.735,83.64,22.4461982]
[1771340968057,8.43700767,83.735,83.62,22.4461982]
[1771340968564,8.46653532,83.707,83.62,22.4461982]
[1771340970664,10.7591,83.696,83.627,10.7679]
[1771340970859,8.46653532,83.707,83.62,22.4461982]
[1771340971158,10.7603,83.687,83.626,10.768]
[1771340971662,8.46653532,83.707,83.61,22.4461982]
[1771340972458,10.7602,83.688,83.628,10.7678]
[1771340972659,8.46653532,83.707,83.61,22.4461982]
[1771340973662,10.7616,83.677,83.61,22.4461982]
[1771340973852,8.56302872,83.683,83.61,22.4461982]
[1771340974058,8.56302872,83.683,83.59,22.4461982]
[1771340974466,8.56302872,83.683,83.61,22.4461982]
[1771340975262,8.56302872,83.683,83.624,10.7683]
[1771340975963,8.56302872,83.683,83.614,10.7696]
[1771340976170,8.56302872,83.683,83.61,22.4461982]
[1771340976566,10.7583,83.703,83.637,10.7666]
[1771340976871,8.58932254,83.702,83.637,10.7666]
[1771340977469,8.58932254,83.702,83.628,10.7678]
[1771340977865,8.58932254,83.702,83.61,22.4461982]
[1771340977866,8.59856218,83.694,83.618,10.769]
[1771340978263,8.59856218,83.694,83.543,167.6687]
[1771340978264,8.60098757,83.731,83.6,22.4461982]
[1771340978466,8.60098757,83.715,83.64,22.4461982]
[1771340978666,8.60098757,83.715,83.62,22.4461982]
[1771340978863,8.60098757,83.715,83.642,10.766]
[1771340979060,8.60098757,83.715,83.62,22.4461982]
[1771340979266,167.2741,83.742,83.553,167.6497]
[1771340979267,22.4461982,83.71,83.577,167.6012]
[1771340979461,22.4461982,83.71,83.6,22.4461982]
[1771340979462,8.60994004,83.693,83.6,22.4461982]
[1771340979870,8.60994004,83.693,83.61,6.12497063]
[1771340980565,10.7607,83.684,83.625,10.7682]
[1771340980963,8.62788585,83.683,83.61,6.12497063]
[1771340981271,10.7626,83.669,83.61,6.12497063]
[1771340981471,8.62788585,83.683,83.61,6.12497063]
[1771340981870,19.3981341,83.678,83.61,6.12497063]
[1771340982170,6.12497063,83.7,83.554,35.99]
[1771340982171,8.6367341,83.677,83.59,6.12497063]
[1771340982964,8.6125499,83.656,83.59,6.12497063]
[1771340983165,8.6125499,83.656,83.55,6.12497063]
[1771340983365,8.62086235,83.639,83.55,6.12497063]
[1771340983767,8.62086235,83.621,83.55,6.12497063]
[1771340984886,10.7701,83.611,83.55,6.12497063]
[1771340985068,8.62086235,83.621,83.55,6.12497063]
[1771340985471,8.68080406,83.641,83.55,6.12497063]
[1771340985672,10.7718,83.598,83.55,6.12497063]
[1771340985974,8.68080406,83.629,83.55,6.12497063]
[1771340986475,10.7705,83.608,83.55,6.12497063]
[1771340986672,6.12497063,83.65,83.55,6.12497063]
[1771340986673,8.70132807,83.619,83.55,6.12497063]
[1771340987071,10.7726,83.592,83.53,6.12497063]
[1771340987372,8.70961313,83.595,83.51,6.12497063]
[1771340987677,10.775,83.573,83.51,6.12497063]
[1771340987877,8.70961313,83.595,83.51,6.12497063]
[1771340988579,8.70961313,83.595,83.5,6.12497063]
[1771340988972,8.70961313,83.595,83.426,21.5876]
[1771340988973,8.74555133,83.579,83.434,35.99]
[1771340989172,8.74555133,83.579,83.49,6.12497063]
[1771340989478,10.7769,83.558,83.49,6.12497063]
[1771340989678,8.74555133,83.579,83.49,6.12497063]
[1771340989976,10.7768,83.559,83.492,10.7853]
[1771340990175,8.74555133,83.579,83.51,6.12497063]
[1771340990480,8.74555133,83.579,83.49,6.12497063]
[1771340990675,10.7788,83.543,83.49,6.12497063]
[1771340991067,8.69878012,83.559,83.49,6.12497063]
[1771340991472,8.70638572,83.539,83.49,6.12497063]
[1771340991672,8.70638572,83.539,83.47,6.12497063]
[1771340991978,10.7814,83.523,83.47,6.12497063]
[1771340993774,10.7802,83.533,83.47,6.12497063]
[1771340993985,10.7802,83.533,83.49,6.12497063]
[1771340994280,8.7088593,83.559,83.49,6.12497063]
[1771340994466,10.7813,83.524,83.47,6.12497063]
[1771340994667,8.72028021,83.54,83.47,6.12497063]
[1771340995473,8.72732841,83.559,83.49,6.12497063]
[1771340996686,10.7803,83.532,83.49,6.12497063]
[1771340997084,10.7803,83.532,83.45,6.12497063]
[1771340997085,8.72732841,83.559,83.47,6.12497063]
[1771340997989,8.74256789,83.558,83.47,6.12497063]
[1771340998680,6.12497063,83.56,83.47,6.12497063]
[1771340998681,8.75097638,83.537,83.47,6.12497063]
[1771340999186,6.12497063,83.57,83.45,6.12497063]
[1771340999187,8.75773849,83.57,83.49,6.12497063]
[1771341000077,10.7754,83.569,83.49,6.12497063]
[1771341000278,8.79236494,83.568,83.51,6.12497063]
[1771341000478,8.79236494,83.599,83.51,6.12497063]
[1771341000673,8.79236494,83.598,83.514,10.7824]
[1771341000886,8.79236494,83.598,83.53,6.12497063]
[1771341001185,8.79236494,83.598,83.51,6.12497063]
[1771341001379,8.79915823,83.578,83.51,6.12497063]
[1771341001585,8.79915823,83.578,83.45,6.12497063]
[1771341001586,8.79915823,83.578,83.49,6.12497063]
[1771341001781,8.79915823,83.578,83.49,16.91057063]
[1771341001987,8.79915823,83.578,83.49,6.12497063]
[1771341002283,8.78991593,83.569,83.49,6.12497063]
[1771341002482,8.78991593,83.553,83.49,6.12497063]
[1771341002885,6.12497063,83.57,83.49,6.12497063]
[1771341003184,8.78991593,83.58,83.51,6.12497063]
[1771341003488,10.7752,83.571,83.51,6.12497063]
[1771341004577,19.56401593,83.58,83.51,6.12497063]
[1771341004783,8.74958773,83.631,83.55,6.12497063]
[1771341005480,8.75563697,83.619,83.54,6.12497063]
[1771341005788,167.4196,83.669,83.501,35.99]
[1771341005789,6.12497063,83.64,83.56,6.12497063]
[1771341005985,6.12497063,83.7,83.58,6.12497063]
[1771341005986,8.75563697,83.66,83.58,6.12497063]
[1771341006386,8.79036815,83.658,83.58,6.12497063]
[1771341006785,8.79036815,83.639,83.56,6.12497063]
[1771341006985,167.4038,83.677,83.54,6.12497063]
[1771341006986,8.79036815,83.619,83.54,6.12497063]
[1771341007184,6.12497063,83.62,83.54,6.12497063]
[1771341007385,6.12497063,83.62,83.468,21.5769]
[1771341007386,8.79645615,83.706,83.61,6.12497063]